[Event "26th Abu Dhabi Master 2019"]
[Site "Abu Dhabi"]
[Date "2019.08.04"]
[Round "4.1"]
[White "Maghsoodloo, Parham"]
[Black "Petrosyan, Manuel"]
[Result "1/2-1/2"]
[ECO "C50"]
[WhiteElo "2656"]
[BlackElo "2592"]
[Annotator "ChessBase"]
[PlyCount "109"]
[EventDate "2019.08.02"]
[EventType "swiss"]
[EventCountry "UAE"]
[SourceTitle "playchess.com"]
[Source "ChessBase"]
[SourceQuality "1"]
[TimeControl "5400+30"]

1. e4 {[%emt 0:01:39]} e5 {[%emt 0:00:00]} 2. Nf3 {[%emt 0:00:05]} Nc6 {[%emt 0:00:07]} 3. Bc4 {[%emt 0:00:05]} Nf6 {[%emt 0:00:12]} 4. d3 {[%emt 0:00:06]} Bc5 {[%emt 0:00:17]} 5. c3 {[%emt 0:00:13]} d6 {[%emt 0:00:21]} 6. Nbd2 {[%emt 0:02:48]} O-O {[%emt 0:01:47]} 7. h3 {[%emt 0:02:19]} a6 {[%emt 0:01:42]} 8. a4 {[%emt 0:01:11]} a5 {[%emt 0:00:47]} 9. O-O {[%emt 0:01:31]} h6 {[%emt 0:01:27]} 10. Re1 {[%emt 0:02:58]} Be6 {[%emt 0:01:40]} 11. b3 {[%emt 0:01:27]} Ba7 {[%emt 0:14:03]} 12. Bb2 {[%emt 0:11:07]} Ne7 {[%emt 0:08:22]} 13. Nf1 {[%emt 0:19:16]} Ng6 {[%emt 0:03:05]} 14. Ng3 {[%emt 0:01:19]} Qd7 {[%emt 0:15:41]} 15. d4 {[%emt 0:04:09]} Bxc4 {[%emt 0:05:19]} 16. bxc4 {[%emt 0:01:04]} Rfe8 {[%emt 0:00:42]} 17. Qb3 {[%emt 0:06:25]} Qc6 {[%emt 0:00:54]} 18. Qb5 {[%emt 0:02:20]} Nd7 {[%emt 0:06:36]} 19. Nh5 {[%emt 0:02:56]} Ngf8 20. Nd2 Qb6 21. Ng3 {[%emt 0:08:19]} g6 {[%emt 0:16:15]} 22. Reb1 {[%emt 0:04:41]} c6 {[%emt 0:01:21]} 23. Qxb6 {[%emt 0:00:12]} Bxb6 {[%emt 0:00:05]} 24. Nf3 {[%emt 0:04:07]} c5 {[%emt 0:03:18]} 25. dxe5 {[%emt 0:02:46]} dxe5 {[%emt 0:01:45]} 26. Bc1 {[%emt 0:00:08]} Kg7 {[%emt 0:01:08]} 27. Nf1 {[%emt 0:02:20]} Rab8 {[%emt 0:01:56]} 28. Ne3 {[%emt 0:00:10]} Bd8 {[%emt 0:00:10]} 29. Ne1 {[%emt 0:01:01]} Bg5 {[%emt 0:02:47]} 30. Nd5 {[%emt 0:00:05]} Bxc1 {[%emt 0:01:12]} 31. Rxc1 {[%emt 0:00:01]} f5 {[%emt 0:01:11]} 32. Nc2 {[%emt 0:00:17]} Nh7 {[%emt 0:04:07]} 33. Rab1 {[%emt 0:02:12]} Nhf6 {[%emt 0:01:05]} 34. exf5 {[%emt 0:00:27]} gxf5 {[%emt 0:01:11]} 35. Nce3 {[%emt 0:00:06]} f4 {[%emt 0:01:45]} 36. Nf5+ {[%emt 0:00:37]} Kg6 {[%emt 0:00:07]} 37. Nd6 {[%emt 0:01:48]} Re6 {[%emt 0:00:07]} 38. Nxb7 {[%emt 0:02:19]} Nxd5 {[%emt 0:00:09]} 39. cxd5 {[%emt 0:00:24]} Rb6 {[%emt 0:00:04]} 40. Rxb6+ {[%emt 0:01:16]} Nxb6 {[%emt 0:00:01]} 41. Nxc5 {[%emt 0:02:24]} Rc8 {[%emt 0:02:24]} 42. Nb3 {[%emt 0:01:39]} Nxa4 {[%emt 0:01:56]} 43. c4 {[%emt 0:05:13]} Nb6 {[%emt 0:00:04]} 44. c5 {[%emt 0:00:47]} Nxd5 {[%emt 0:00:30]} 45. Nxa5 {[%emt 0:00:01]} Kf6 {[%emt 0:00:28]} 46. c6 {[%emt 0:00:35]} Ke6 {[%emt 0:01:57]} 47. Rc5 {[%emt 0:01:06]} Ne7 {[%emt 0:00:49]} 48. c7 {[%emt 0:02:43]} Nd5 {[%emt 0:00:49]} 49. Rc6+ {[%emt 0:00:09]} Kf5 {[%emt 0:00:53]} 50. Rd6 {[%emt 0:02:01]} Nf6 {[%emt 0:00:33]} 51. Nc4 {[%emt 0:01:51]} Rxc7 {[%emt 0:00:25]} 52. g4+ {[%emt 0:00:01]} fxg3 {[%emt 0:00:34]} 53. Ne3+ {[%emt 0:00:05]} Kg5 {[%emt 0:01:11]} 54. fxg3 {[%emt 0:00:36]} Ne4 {[%emt 0:00:25]} 55. Re6 {[%emt 0:01:23]} 1/2-1/2

[Event "26th Abu Dhabi Master 2019"]
[Site "Abu Dhabi"]
[Date "2019.08.04"]
[Round "4.2"]
[White "Jobava, Baadur"]
[Black "Indjic, Aleksandar"]
[Result "1-0"]
[ECO "B34"]
[WhiteElo "2594"]
[BlackElo "2604"]
[Annotator "ChessBase"]
[PlyCount "89"]
[EventDate "2019.08.02"]
[EventType "swiss"]
[EventCountry "UAE"]
[SourceTitle "playchess.com"]
[Source "ChessBase"]
[SourceQuality "1"]
[TimeControl "5400+30"]

1. e4 {[%emt 0:00:15]} c5 {[%emt 0:00:18]} 2. Nc3 {[%emt 0:00:27]} Nc6 {[%emt 0:00:38]} 3. Nge2 {[%emt 0:00:18]} g6 {[%emt 0:00:53]} 4. d4 {[%emt 0:00:06]} cxd4 {[%emt 0:00:07]} 5. Nxd4 {[%emt 0:00:03]} Bg7 {[%emt 0:00:10]} 6. Nb3 {[%emt 0:00:12]} Nf6 {[%emt 0:01:01]} 7. Be2 {[%emt 0:00:07]} d6 {[%emt 0:00:07]} 8. O-O {[%emt 0:00:13]} O-O {[%emt 0:00:16]} 9. Re1 {[%emt 0:00:06]} b6 {[%emt 0:08:15]} 10. Bg5 {[%emt 0:02:22]} Bb7 {[%emt 0:01:29]} 11. Qd2 {[%emt 0:08:34]} Rc8 {[%emt 0:03:18]} 12. Bh6 {[%emt 0:02:55]} Ne5 {[%emt 0:19:43]} 13. Bxg7 {[%emt 0:00:11]} Kxg7 {[%emt 0:00:06]} 14. Qd4 {[%emt 0:03:33]} Nc6 {[%emt 0:03:59]} 15. Qe3 {[%emt 0:00:56]} e6 {[%emt 0:03:24]} 16. Rad1 {[%emt 0:01:05]} Qe7 {[%emt 0:00:07]} 17. Qc1 {[%emt 0:09:54]} Rfd8 {[%emt 0:10:07]} 18. Rd3 {[%emt 0:00:19]} Ba6 {[%emt 0:02:37]} 19. Rh3 {[%emt 0:01:53]} Bxe2 {[%emt 0:00:08]} 20. Rxe2 {[%emt 0:11:28]} h5 {[%emt 0:00:50]} 21. f4 {[%emt 0:06:42]} Ng4 {[%emt 0:07:02]} 22. Rf3 {[%emt 0:06:19]} a6 {[%emt 0:07:03]} 23. h3 {[%emt 0:11:47]} Nf6 {[%emt 0:00:30]} 24. Qe1 {[%emt 0:00:30]} b5 {[%emt 0:00:30]} 25. Kh1 {[%emt 0:00:30]} Rc7 {[%emt 0:00:30]} 26. Qf2 {[%emt 0:00:30]} Re8 {[%emt 0:14:57]} 27. a3 {[%emt 0:00:30]} Rh8 {[%emt 0:00:30]} 28. Rd3 {[%emt 0:04:10]} h4 {[%emt 0:04:10]} 29. Red2 {[%emt 0:00:34]} a5 {[%emt 0:03:51]} 30. Qe3 {[%emt 0:03:47]} a4 {[%emt 0:00:59]} 31. Nd4 {[%emt 0:04:44]} Na5 {[%emt 0:01:41]} 32. b3 {[%emt 0:01:15]} axb3 {[%emt 0:01:17]} 33. cxb3 {[%emt 0:00:04]} Rb7 {[%emt 0:04:14]} 34. Ncxb5 {[%emt 0:02:30]} e5 {[%emt 0:01:31]} 35. fxe5 {[%emt 0:04:08]} dxe5 {[%emt 0:00:01]} 36. Nf5+ {[%emt 0:00:36]} gxf5 {[%emt 0:00:05]} 37. Qg5+ {[%emt 0:00:03]} Kf8 {[%emt 0:00:06]} 38. Rd8+ {[%emt 0:00:17]} Ne8 {[%emt 0:00:08]} 39. Rxe8+ {[%emt 0:00:21]} Qxe8 {[%emt 0:01:08]} 40. Qf6 {[%emt 0:00:04]} Rg8 {[%emt 0:01:24]} 41. Rd8 {[%emt 0:00:05]} Rxb5 42. Qh6+ {[%emt 0:00:06]} Rg7 {[%emt 0:00:59]} 43. Qd6+ {[%emt 0:00:06]} Kg8 {[%emt 0:00:10]} 44. Rxe8+ {[%emt 0:00:05]} Kh7 {[%emt 0:00:04]} 45. Qd7 {[%emt 0:00:21]} 1-0

[Event "26th Abu Dhabi Master 2019"]
[Site "Abu Dhabi"]
[Date "2019.08.04"]
[Round "4.3"]
[White "Aleksandrov, Aleksej"]
[Black "Abdusattorov, Nodirbek"]
[Result "1/2-1/2"]
[ECO "E54"]
[WhiteElo "2571"]
[BlackElo "2598"]
[Annotator "ChessBase"]
[PlyCount "51"]
[EventDate "2019.08.02"]
[EventType "swiss"]
[EventCountry "UAE"]
[SourceTitle "playchess.com"]
[Source "ChessBase"]
[SourceQuality "1"]
[TimeControl "5400+30"]

1. d4 {[%emt 0:00:00]} Nf6 {[%emt 0:00:00]} 2. c4 {[%emt 0:00:00]} e6 {[%emt 0:00:05]} 3. Nc3 {[%emt 0:00:20]} Bb4 {[%emt 0:00:23]} 4. e3 {[%emt 0:00:04]} O-O {[%emt 0:00:17]} 5. Bd3 {[%emt 0:00:05]} d5 {[%emt 0:00:16]} 6. Nf3 {[%emt 0:00:04]} c5 {[%emt 0:01:21]} 7. O-O {[%emt 0:00:07]} dxc4 {[%emt 0:00:12]} 8. Bxc4 {[%emt 0:00:07]} b6 {[%emt 0:00:08]} 9. dxc5 {[%emt 0:02:26]} Qxd1 {[%emt 0:02:03]} 10. Rxd1 {[%emt 0:00:05]} Bxc5 {[%emt 0:00:19]} 11. b3 {[%emt 0:01:27]} Bb7 {[%emt 0:01:40]} 12. Bb2 {[%emt 0:00:09]} Nbd7 {[%emt 0:04:37]} 13. Rac1 {[%emt 0:04:10]} Rfc8 {[%emt 0:12:13]} 14. Bb5 {[%emt 0:04:48]} Nf8 {[%emt 0:13:52]} 15. Be2 {[%emt 0:11:32]} Be7 {[%emt 0:02:49]} 16. Nd2 {[%emt 0:03:48]} Nd5 {[%emt 0:06:17]} 17. Nxd5 {[%emt 0:07:43]} Bxd5 {[%emt 0:00:05]} 18. Bf3 {[%emt 0:04:28]} Bxf3 {[%emt 0:01:01]} 19. Nxf3 {[%emt 0:00:17]} f6 {[%emt 0:02:03]} 20. Kf1 {[%emt 0:03:46]} e5 {[%emt 0:00:52]} 21. Ke2 {[%emt 0:00:22]} Kf7 {[%emt 0:00:23]} 22. Nd2 {[%emt 0:01:22]} Ke6 {[%emt 0:01:22]} 23. g4 {[%emt 0:00:19]} Nd7 {[%emt 0:02:27]} 24. Ne4 {[%emt 0:05:56]} Rxc1 {[%emt 0:01:59]} 25. Rxc1 {[%emt 0:02:41]} Nc5 {[%emt 0:00:38]} 26. Nxc5+ {[%emt 0:00:44]} 1/2-1/2

[Event "26th Abu Dhabi Master 2019"]
[Site "Abu Dhabi"]
[Date "2019.08.04"]
[Round "4.4"]
[White "Antipov, Mikhail Al."]
[Black "Ni, Hua"]
[Result "0-1"]
[ECO "C65"]
[WhiteElo "2582"]
[BlackElo "2668"]
[Annotator "ChessBase"]
[PlyCount "80"]
[EventDate "2019.08.02"]
[EventType "swiss"]
[EventCountry "UAE"]
[SourceTitle "playchess.com"]
[Source "ChessBase"]
[SourceQuality "1"]
[TimeControl "5400+30"]

1. e4 {[%emt 0:00:00]} e5 {[%emt 0:00:00]} 2. Nf3 {[%emt 0:00:00]} Nc6 {[%emt 0:00:00]} 3. Bb5 {[%emt 0:00:00]} Nf6 {[%emt 0:00:00]} 4. d3 {[%emt 0:00:00]} Bc5 {[%emt 0:00:00]} 5. Nbd2 {[%emt 0:00:00]} d6 {[%emt 0:04:02]} 6. c3 {[%emt 0:01:14]} O-O {[%emt 0:00:27]} 7. O-O {[%emt 0:02:34]} Bb6 {[%emt 0:01:02]} 8. h3 {[%emt 0:01:45]} Ne7 {[%emt 0:03:50]} 9. Nc4 {[%emt 0:17:07]} c6 {[%emt 0:01:39]} 10. Nxb6 {[%emt 0:00:13]} axb6 {[%emt 0:00:04]} 11. Bc4 {[%emt 0:00:06]} Ng6 {[%emt 0:00:29]} 12. Bb3 {[%emt 0:06:56]} Re8 {[%emt 0:09:15]} 13. a4 {[%emt 0:07:00]} h6 {[%emt 0:03:05]} 14. Re1 {[%emt 0:03:17]} Be6 {[%emt 0:04:36]} 15. Bxe6 {[%emt 0:07:02]} Rxe6 {[%emt 0:00:06]} 16. Be3 {[%emt 0:00:08]} d5 {[%emt 0:01:27]} 17. Nh2 {[%emt 0:15:01]} Rd6 {[%emt 0:09:55]} 18. Qf3 {[%emt 0:07:08]} c5 {[%emt 0:06:46]} 19. Ng4 {[%emt 0:01:51]} Nh4 {[%emt 0:04:50]} 20. Qg3 {[%emt 0:03:33]} Nxg4 {[%emt 0:00:08]} 21. hxg4 {[%emt 0:00:05]} Ng6 {[%emt 0:00:12]} 22. d4 {[%emt 0:03:16]} dxe4 {[%emt 0:00:30]} 23. dxe5 {[%emt 0:00:30]} Rd3 24. e6 f6 {[%emt 0:12:38]} 25. Qh2 {[%emt 0:10:29]} Kh7 {[%emt 0:09:46]} 26. Qh5 {[%emt 0:01:37]} Rd5 {[%emt 0:02:03]} 27. g5 {[%emt 0:00:01]} Qe7 {[%emt 0:03:32]} 28. f4 {[%emt 0:09:40]} Qxe6 {[%emt 0:04:32]} 29. c4 {[%emt 0:00:53]} Rf5 {[%emt 0:03:19]} 30. Qh2 {[%emt 0:02:47]} fxg5 {[%emt 0:01:52]} 31. fxg5 {[%emt 0:00:01]} Qe5 {[%emt 0:00:23]} 32. gxh6 {[%emt 0:01:12]} Qxh2+ {[%emt 0:00:50]} 33. Kxh2 {[%emt 0:00:01]} gxh6 {[%emt 0:00:07]} 34. Rad1 {[%emt 0:00:09]} Ne5 {[%emt 0:00:49]} 35. Rd6 {[%emt 0:00:19]} Rh5+ {[%emt 0:01:16]} 36. Kg1 {[%emt 0:00:11]} Rg8 {[%emt 0:00:03]} 37. Rc1 {[%emt 0:01:43]} Nf3+ {[%emt 0:02:39]} 38. Kf2 {[%emt 0:00:08]} Rh2 {[%emt 0:00:04]} 39. Rxb6 {[%emt 0:01:01]} Rgxg2+ {[%emt 0:06:31]} 40. Kf1 {[%emt 0:00:00]} Nd2+ {[%emt 0:00:19]} 0-1

[Event "26th Abu Dhabi Master 2019"]
[Site "Abu Dhabi"]
[Date "2019.08.04"]
[Round "4.6"]
[White "Can, Emre"]
[Black "Volokitin, Andrei"]
[Result "0-1"]
[ECO "D37"]
[WhiteElo "2595"]
[BlackElo "2636"]
[Annotator "ChessBase"]
[PlyCount "32"]
[EventDate "2019.08.02"]
[EventType "swiss"]
[EventCountry "UAE"]
[SourceTitle "playchess.com"]
[Source "ChessBase"]
[SourceQuality "1"]
[TimeControl "5400+30"]

1. d4 {[%emt 0:00:00]} Nf6 {[%emt 0:00:00]} 2. c4 {[%emt 0:00:00]} e6 {[%emt 0:00:00]} 3. Nf3 {[%emt 0:00:28]} d5 {[%emt 0:00:08]} 4. Nc3 {[%emt 0:00:24]} dxc4 {[%emt 0:06:43]} 5. Qa4+ {[%emt 0:00:44]} c6 {[%emt 0:00:36]} 6. Qxc4 {[%emt 0:00:16]} b5 {[%emt 0:00:13]} 7. Qd3 {[%emt 0:00:08]} Bb7 {[%emt 0:00:45]} 8. e4 {[%emt 0:00:53]} b4 {[%emt 0:01:22]} 9. Na4 {[%emt 0:00:34]} Nbd7 {[%emt 0:02:04]} 10. Be3 {[%emt 0:06:01]} Qa5 {[%emt 0:01:01]} 11. b3 {[%emt 0:00:07]} Be7 {[%emt 0:00:08]} 12. Nd2 {[%emt 0:13:42]} O-O {[%emt 0:00:26]} 13. Rc1 {[%emt 0:10:42]} c5 {[%emt 0:47:31]} 14. dxc5 {[%emt 0:01:25]} Bc6 {[%emt 0:00:47]} 15. Qa6 {[%emt 0:04:13]} Qc7 {[%emt 0:00:22]} 16. Be2 {[%emt 0:02:39]} Rab8 {[%emt 0:22:03]} 0-1

[Event "26th Abu Dhabi Master 2019"]
[Site "Abu Dhabi"]
[Date "2019.08.04"]
[Round "4.7"]
[White "Yilmaz, Mustafa"]
[Black "Santos Latasa, Jaime"]
[Result "1/2-1/2"]
[ECO "D38"]
[WhiteElo "2618"]
[BlackElo "2594"]
[Annotator "ChessBase"]
[PlyCount "50"]
[EventDate "2019.08.02"]
[EventType "swiss"]
[EventCountry "UAE"]
[SourceTitle "playchess.com"]
[Source "ChessBase"]
[SourceQuality "1"]
[TimeControl "5400+30"]

1. d4 {[%emt 0:00:00]} Nf6 {[%emt 0:01:34]} 2. c4 {[%emt 0:00:00]} e6 {[%emt 0:00:04]} 3. Nf3 {[%emt 0:00:00]} d5 {[%emt 0:00:08]} 4. Nc3 {[%emt 0:00:00]} Bb4 {[%emt 0:00:09]} 5. cxd5 {[%emt 0:00:20]} exd5 {[%emt 0:00:07]} 6. Bg5 {[%emt 0:00:05]} h6 {[%emt 0:00:06]} 7. Bh4 {[%emt 0:00:04]} Nbd7 {[%emt 0:00:19]} 8. Qc2 {[%emt 0:04:51]} g5 {[%emt 0:01:40]} 9. Bg3 {[%emt 0:00:45]} Ne4 {[%emt 0:00:22]} 10. Nd2 {[%emt 0:01:11]} Nxg3 {[%emt 0:00:21]} 11. hxg3 {[%emt 0:00:03]} Nb6 {[%emt 0:01:35]} 12. a3 {[%emt 0:04:35]} Bf8 {[%emt 0:03:01]} 13. e4 {[%emt 0:13:14]} dxe4 {[%emt 0:00:30]} 14. O-O-O {[%emt 0:09:25]} Bg7 {[%emt 0:02:22]} 15. Ndxe4 {[%emt 0:02:20]} O-O {[%emt 0:00:46]} 16. f4 {[%emt 0:03:22]} gxf4 {[%emt 0:01:52]} 17. gxf4 {[%emt 0:00:44]} Re8 {[%emt 0:00:11]} 18. g4 {[%emt 0:23:29]} Bxg4 {[%emt 0:08:40]} 19. Rd2 {[%emt 0:04:10]} Nd5 {[%emt 0:07:48]} 20. Rg1 {[%emt 0:04:07]} Nxc3 {[%emt 0:03:21]} 21. bxc3 {[%emt 0:00:38]} h5 {[%emt 0:04:10]} 22. Bc4 {[%emt 0:01:07]} b5 {[%emt 0:02:06]} 23. Ba2 {[%emt 0:06:17]} Qe7 {[%emt 0:01:17]} 24. Ng5 {[%emt 0:01:58]} Qxa3+ {[%emt 0:00:57]} 25. Kb1 {[%emt 0:00:01]} Re7 {[%emt 0:00:18]} 1/2-1/2

[Event "26th Abu Dhabi Master 2019"]
[Site "Abu Dhabi"]
[Date "2019.08.04"]
[Round "4.8"]
[White "Yakubboev, Nodirbek"]
[Black "Bartel, Mateusz"]
[Result "1/2-1/2"]
[ECO "D02"]
[WhiteElo "2575"]
[BlackElo "2600"]
[Annotator "ChessBase"]
[PlyCount "55"]
[EventDate "2019.08.02"]
[EventType "swiss"]
[EventCountry "UAE"]
[SourceTitle "playchess.com"]
[Source "ChessBase"]
[SourceQuality "1"]
[TimeControl "5400+30"]

1. d4 {[%emt 0:02:35]} d5 {[%emt 0:00:00]} 2. Nf3 {[%emt 0:01:50]} c6 {[%emt 0:00:03]} 3. c4 {[%emt 0:01:03]} e6 {[%emt 0:00:11]} 4. e3 {[%emt 0:05:03]} Nf6 {[%emt 0:00:30]} 5. b3 {[%emt 0:03:44]} Ne4 {[%emt 0:00:19]} 6. Bd3 {[%emt 0:00:30]} Bb4+ {[%emt 0:00:15]} 7. Nbd2 {[%emt 0:00:41]} f5 {[%emt 0:00:08]} 8. Ne5 {[%emt 0:11:51]} O-O {[%emt 0:03:24]} 9. O-O {[%emt 0:03:42]} Nd7 {[%emt 0:00:03]} 10. Ndf3 {[%emt 0:04:19]} Qf6 {[%emt 0:17:04]} 11. Bb2 {[%emt 0:06:24]} Bd6 {[%emt 0:00:24]} 12. Qe2 {[%emt 0:05:06]} Qh6 {[%emt 0:02:12]} 13. b4 {[%emt 0:11:56]} Bxb4 {[%emt 0:06:03]} 14. a4 {[%emt 0:00:59]} Bd6 {[%emt 0:12:01]} 15. Ba3 {[%emt 0:04:14]} c5 {[%emt 0:04:42]} 16. cxd5 {[%emt 0:12:28]} exd5 {[%emt 0:01:56]} 17. Qa2 {[%emt 0:00:28]} Ndf6 {[%emt 0:15:28]} 18. dxc5 {[%emt 0:00:30]} Nxc5 {[%emt 0:00:30]} 19. Bxc5 {[%emt 0:00:30]} Bxc5 {[%emt 0:00:30]} 20. Qc2 {[%emt 0:00:30]} Bd6 {[%emt 0:00:30]} 21. Bxf5 {[%emt 0:00:30]} Bxf5 22. Qxf5 {[%emt 0:07:01]} Ne4 {[%emt 0:01:00]} 23. Qd7 {[%emt 0:00:41]} Rae8 {[%emt 0:05:42]} 24. Nf7 {[%emt 0:11:11]} Rxf7 {[%emt 0:00:42]} 25. Qxe8+ {[%emt 0:00:03]} Rf8 {[%emt 0:00:08]} 26. Qb5 {[%emt 0:00:13]} Nc3 {[%emt 0:03:22]} 27. Qb2 {[%emt 0:03:54]} Rxf3 {[%emt 0:03:25]} 28. h3 {[%emt 0:00:02]} 1/2-1/2

[Event "26th Abu Dhabi Master 2019"]
[Site "Abu Dhabi"]
[Date "2019.08.04"]
[Round "4.9"]
[White "Paichadze, Luka"]
[Black "Aravindh, Chithambaram VR."]
[Result "1/2-1/2"]
[ECO "B23"]
[WhiteElo "2567"]
[BlackElo "2600"]
[Annotator "ChessBase"]
[PlyCount "41"]
[EventDate "2019.08.02"]
[EventType "swiss"]
[EventCountry "UAE"]
[SourceTitle "playchess.com"]
[Source "ChessBase"]
[SourceQuality "1"]
[TimeControl "5400+30"]

1. e4 {[%emt 0:00:00]} c5 {[%emt 0:02:41]} 2. Nc3 {[%emt 0:00:00]} d6 {[%emt 0:00:29]} 3. d4 {[%emt 0:00:00]} cxd4 {[%emt 0:00:14]} 4. Qxd4 {[%emt 0:00:00]} Nc6 {[%emt 0:00:07]} 5. Qd2 {[%emt 0:05:27]} g6 {[%emt 0:00:17]} 6. b3 {[%emt 0:00:07]} Bh6 {[%emt 0:00:08]} 7. f4 {[%emt 0:00:07]} f5 {[%emt 0:00:24]} 8. Bb2 {[%emt 0:02:47]} Nf6 {[%emt 0:00:09]} 9. Bd3 {[%emt 0:09:13]} Qa5 {[%emt 0:01:05]} 10. Nge2 {[%emt 0:03:24]} Rf8 {[%emt 0:02:25]} 11. g3 {[%emt 0:10:37]} fxe4 {[%emt 0:09:55]} 12. Nxe4 {[%emt 0:00:12]} Qxd2+ {[%emt 0:00:09]} 13. Kxd2 {[%emt 0:08:43]} Nxe4+ {[%emt 0:01:15]} 14. Bxe4 {[%emt 0:00:04]} Bf5 {[%emt 0:00:10]} 15. Bxf5 {[%emt 0:05:55]} Rxf5 {[%emt 0:00:11]} 16. Raf1 {[%emt 0:00:55]} e5 {[%emt 0:37:11]} 17. g4 {[%emt 0:04:07]} Bxf4+ {[%emt 0:00:43]} 18. Nxf4 {[%emt 0:00:23]} Rxf4 {[%emt 0:00:05]} 19. Rxf4 {[%emt 0:00:16]} exf4 {[%emt 0:00:04]} 20. Rf1 {[%emt 0:00:24]} g5 {[%emt 0:00:44]} 21. h4 {[%emt 0:07:11]} 1/2-1/2

[Event "26th Abu Dhabi Master 2019"]
[Site "Abu Dhabi"]
[Date "2019.08.04"]
[Round "4.10"]
[White "Zubov, Alexander"]
[Black "Santos Ruiz, Miguel"]
[Result "1/2-1/2"]
[ECO "C65"]
[WhiteElo "2601"]
[BlackElo "2567"]
[Annotator "ChessBase"]
[PlyCount "67"]
[EventDate "2019.08.02"]
[EventType "swiss"]
[EventCountry "UAE"]
[SourceTitle "playchess.com"]
[Source "ChessBase"]
[SourceQuality "1"]
[TimeControl "5400+30"]

1. e4 {[%emt 0:00:00]} e5 {[%emt 0:01:17]} 2. Nf3 {[%emt 0:00:00]} Nc6 {[%emt 0:00:03]} 3. Bb5 {[%emt 0:00:26]} Nf6 {[%emt 0:00:26]} 4. d3 {[%emt 0:01:57]} Bc5 {[%emt 0:00:13]} 5. Nc3 {[%emt 0:03:34]} a6 {[%emt 0:17:25]} 6. Bxc6 {[%emt 0:09:50]} dxc6 {[%emt 0:00:07]} 7. Nxe5 {[%emt 0:06:21]} Qd4 {[%emt 0:07:51]} 8. Be3 {[%emt 0:00:08]} Qxe5 {[%emt 0:00:06]} 9. d4 {[%emt 0:00:04]} Qe7 {[%emt 0:00:13]} 10. dxc5 {[%emt 0:00:25]} Nxe4 {[%emt 0:00:05]} 11. Qd4 {[%emt 0:00:45]} Bf5 {[%emt 0:00:19]} 12. O-O-O {[%emt 0:02:32]} O-O {[%emt 0:04:34]} 13. Nxe4 {[%emt 0:02:13]} Qxe4 {[%emt 0:04:59]} 14. Qxe4 {[%emt 0:06:25]} Bxe4 {[%emt 0:03:24]} 15. f3 {[%emt 0:08:15]} Bd5 {[%emt 0:06:29]} 16. Rhe1 {[%emt 0:00:54]} Rfe8 {[%emt 0:16:25]} 17. Bf4 {[%emt 0:01:05]} f6 {[%emt 0:00:45]} 18. Bxc7 {[%emt 0:01:31]} Rxe1 {[%emt 0:01:41]} 19. Rxe1 {[%emt 0:00:03]} Kf7 {[%emt 0:00:05]} 20. Kd2 {[%emt 0:03:16]} Re8 {[%emt 0:01:02]} 21. Rd1 {[%emt 0:09:13]} Ke6 {[%emt 0:02:47]} 22. Rf1 {[%emt 0:19:12]} Kd7 {[%emt 0:00:30]} 23. Bg3 {[%emt 0:00:30]} Kc8 {[%emt 0:00:30]} 24. b3 Bf7 25. c4 {[%emt 0:01:00]} Bg6 {[%emt 0:02:39]} 26. Rf2 {[%emt 0:00:32]} Bf5 {[%emt 0:09:46]} 27. Bd6 {[%emt 0:05:38]} Bb1 {[%emt 0:02:52]} 28. Kc3 {[%emt 0:04:04]} Re3+ {[%emt 0:00:05]} 29. Kb4 {[%emt 0:00:47]} Bd3 {[%emt 0:00:03]} 30. Rd2 {[%emt 0:05:02]} Bf1 {[%emt 0:00:05]} 31. Bf8 {[%emt 0:01:25]} Re2 {[%emt 0:00:24]} 32. Rd1 {[%emt 0:03:31]} Bxg2 {[%emt 0:00:05]} 33. Bxg7 {[%emt 0:00:50]} Bxf3 {[%emt 0:04:15]} 34. Rf1 {[%emt 0:02:54]} 1/2-1/2

[Event "26th Abu Dhabi Master 2019"]
[Site "Abu Dhabi"]
[Date "2019.08.04"]
[Round "4.11"]
[White "Tabatabaei, M.amin"]
[Black "Istratescu, Andrei"]
[Result "1/2-1/2"]
[ECO "E11"]
[WhiteElo "2601"]
[BlackElo "2555"]
[Annotator "ChessBase"]
[PlyCount "67"]
[EventDate "2019.08.02"]
[EventType "swiss"]
[EventCountry "UAE"]
[SourceTitle "playchess.com"]
[Source "ChessBase"]
[SourceQuality "1"]
[TimeControl "5400+30"]

1. d4 {[%emt 0:01:30]} Nf6 {[%emt 0:00:00]} 2. c4 {[%emt 0:00:09]} e6 {[%emt 0:00:00]} 3. Nf3 {[%emt 0:00:14]} Bb4+ {[%emt 0:01:07]} 4. Nbd2 {[%emt 0:00:10]} O-O {[%emt 0:02:02]} 5. a3 {[%emt 0:00:08]} Bxd2+ {[%emt 0:00:13]} 6. Qxd2 {[%emt 0:00:14]} d5 {[%emt 0:00:33]} 7. e3 {[%emt 0:04:36]} b6 {[%emt 0:00:28]} 8. b3 {[%emt 0:08:37]} c5 {[%emt 0:11:05]} 9. dxc5 {[%emt 0:02:32]} bxc5 {[%emt 0:04:30]} 10. Be2 {[%emt 0:00:51]} Ba6 {[%emt 0:04:46]} 11. Qc2 {[%emt 0:05:06]} Nbd7 {[%emt 0:03:06]} 12. O-O {[%emt 0:04:58]} Rb8 {[%emt 0:03:50]} 13. Bb2 {[%emt 0:02:12]} Qb6 {[%emt 0:01:33]} 14. Nd2 {[%emt 0:01:21]} Rfc8 {[%emt 0:06:46]} 15. Rab1 {[%emt 0:01:47]} e5 {[%emt 0:03:41]} 16. Rfe1 {[%emt 0:02:41]} d4 {[%emt 0:04:08]} 17. exd4 {[%emt 0:00:40]} exd4 {[%emt 0:00:04]} 18. b4 {[%emt 0:03:03]} Qd6 {[%emt 0:00:57]} 19. Nb3 {[%emt 0:06:58]} cxb4 {[%emt 0:06:27]} 20. axb4 {[%emt 0:00:14]} d3 {[%emt 0:13:13]} 21. Bxd3 {[%emt 0:04:48]} Rxb4 {[%emt 0:00:40]} 22. Ba3 Ng4 23. g3 {[%emt 0:41:40]} Qh6 {[%emt 0:00:36]} 24. h4 {[%emt 0:00:42]} Rbb8 {[%emt 0:04:36]} 25. Bc1 {[%emt 0:03:38]} Qh5 {[%emt 0:01:12]} 26. Bf4 {[%emt 0:00:59]} Nge5 {[%emt 0:01:44]} 27. Be2 {[%emt 0:00:35]} Qg6 {[%emt 0:00:06]} 28. Qxg6 {[%emt 0:03:00]} hxg6 {[%emt 0:00:09]} 29. Nd2 {[%emt 0:00:11]} Rxb1 {[%emt 0:01:36]} 30. Rxb1 {[%emt 0:00:01]} Bxc4 {[%emt 0:02:11]} 31. Nxc4 {[%emt 0:00:35]} Nxc4 {[%emt 0:00:04]} 32. Rb7 {[%emt 0:00:12]} Nc5 {[%emt 0:01:12]} 33. Rxa7 {[%emt 0:00:02]} Ne6 {[%emt 0:00:07]} 34. Bxc4 {[%emt 0:01:45]} 1/2-1/2